{"text_format":"1","workbook":"xlsx","n_sheets":1,"sheets":["Sheet1"],"not_rendered":{"charts":0,"images":15,"macros":1,"external_links":0,"defined_names":0,"comments":0,"pivot_tables":0},"unopened":[],"bounds":{"document_bytes":16777216,"sheet_cells":100000,"rows_first":2000,"rows_last":500,"rows_between":2000,"halvings":0,"cell_chars":16384,"cell_head_chars":4096},"cells_cut":0,"cells_raw":0,"read":"whole","date_system":"1900"}

{"sheet":"Sheet1","index":0,"n_rows":80,"n_cols":28,"rows_kept":80,"cut":false,"hidden":false,"merged":[[78,10,78,11],[38,1,38,6],[41,1,41,4],[44,1,44,11],[12,1,12,5],[22,4,22,6],[19,8,19,11],[32,1,32,11],[52,1,52,3],[28,4,28,6],[27,10,28,10],[27,1,27,3],[28,1,28,3],[24,4,24,6],[25,4,25,6],[26,4,26,6],[15,7,15,11],[18,10,18,11],[25,1,25,3],[18,1,18,5],[18,6,18,9],[23,1,23,3],[31,1,31,11],[40,1,40,11],[0,1,0,11],[17,10,17,11],[8,1,8,5],[9,1,9,5],[10,1,10,5],[11,1,11,5],[11,6,11,7],[11,8,11,9],[8,6,8,7],[8,8,8,9],[9,8,9,9],[10,8,10,9],[9,6,9,7],[10,6,10,7],[12,8,12,9],[12,6,12,7],[10,10,10,11],[11,10,11,11],[1,1,1,5],[7,6,7,7],[7,8,7,9],[17,1,17,5],[17,6,17,9],[2,1,2,5],[1,6,1,9],[2,6,2,9],[4,6,4,9],[3,6,3,9],[1,10,1,11],[3,10,3,11],[9,10,9,11],[2,10,2,11],[4,1,4,5],[5,6,5,9],[4,10,4,11],[5,10,5,11],[6,10,6,11],[7,10,7,11],[8,10,8,11],[3,1,3,5],[29,1,29,3],[30,1,30,3],[54,1,54,3],[39,7,39,11],[38,7,38,11],[36,1,36,6],[51,1,51,11],[50,4,50,6],[55,1,55,6],[33,4,33,6],[43,1,43,11],[35,1,35,11],[42,4,42,6],[42,8,42,9],[53,1,53,3],[33,9,33,11],[48,4,48,5],[36,7,36,11],[29,4,29,6],[30,4,30,6],[64,1,64,3],[63,1,63,3],[62,1,62,3],[73,1,73,11],[67,1,67,3],[54,4,54,5],[56,4,56,5],[72,1,72,11],[63,4,63,5],[64,4,64,5],[69,1,69,11],[68,1,68,3],[65,4,65,5],[61,1,61,6],[61,7,61,11],[59,4,59,5],[60,4,60,5],[62,4,62,5],[71,6,71,11],[76,1,76,11],[58,1,58,3],[37,1,37,6],[37,7,37,11],[74,2,74,6],[34,1,34,11],[67,4,67,5],[68,4,68,5],[77,1,77,11],[49,4,49,5],[74,7,74,11],[57,4,57,5],[58,4,58,5],[59,1,59,3],[60,1,60,3],[45,1,45,11],[46,1,46,11],[47,1,47,11],[49,1,49,3],[57,1,57,3],[56,1,56,3],[50,1,50,3],[66,1,66,6],[65,1,65,3],[19,1,19,6],[23,5,23,6],[27,11,28,11],[12,10,12,11],[13,1,13,11],[5,1,5,5],[6,6,6,9],[7,1,7,5],[14,1,14,11],[24,1,24,3],[26,1,26,3],[27,4,27,6],[20,4,20,6],[21,4,21,6],[20,1,20,3],[21,10,21,11],[22,1,22,3],[21,1,21,3],[6,1,6,5]]}
[null,"Coriolis meter testing service request \n(Canadian Micro Motion customers)"]
[null,"Company name",null,null,null,null,"Address",null,null,null,"Date (Yr/Mth/Day)",null,null,null,null,null,null,null,"Sensor series","Qmin","Qmax","Pressure","Pressure unit","tempreture","Flow rate","Gas density","Mass flow","flang to flang"]
[null,null,null,null,null,null,null,null,null,null,null,null,null,null,null,null,null,null,"CMF050 Metric (Unavailable)",3,60,10300,"kPa","°C","E³m³/hr","kg/m³","kg/hr","mm"]
[null,"Main contact name ",null,null,null,null,"Email address",null,null,null,"Phone number",null,null,null,null,null,null,null,"CMF050 Imperial (Unavailable)",6.6,{"$f":"U3*2.204","v":132.24},1494,"Psig","°F","ACFH","lb/ft³","lb/hr","inches"]
[null,null,null,null,null,null,null,null,null,null,null,null,null,null,null,null,null,null,"CMF100 Metric (Unavailable)",5.5,110,10000,"kPa","°C","E³m³/hr","kg/m³","kg/hr","mm"]
[null,"Shipping contact name\n(      check if same as main contact)",null,null,null,null,"Email address",null,null,null,"Phone number",null,null,null,null,null,null,null,"CMF100 Imperial (Unavailable)",{"$f":"T5*2.204","v":12.122000000000002},{"$f":"U5*2.204","v":242.44000000000003},1450,"Psig","°F","ACFH","lb/ft³","lb/hr","inches"]
[null,null,null,null,null,null,null,null,null,null,null,null,null,null,null,null,null,null,"CMF200 Metric",8.75,175,10900,"kPa","°C","E³m³/hr","kg/m³","kg/hr","mm"]
[null,"Billing address",null,null,null,null,"City",null,"Province",null,"Postal code",null,null,null,null,null,null,null,"CMF200 Imperial",{"$f":"T7*2.204","v":19.285},{"$f":"U7*2.204","v":385.70000000000005},1580,"Psig","°F","ACFH","lb/ft³","lb/hr","inches"]
[null,null,null,null,null,null,null,null,null,null,null,null,null,null,null,null,null,null,"CMF300 Metric (Unavailable)",16.75,335,11900,"kPa","°C","E³m³/hr","kg/m³","kg/hr","mm"]
[null,"Meter owner company name and address \n(      check if same as billing address)",null,null,null,null,"City",null,"Province",null,"Postal code",null,null,null,null,null,null,null,"CMF300 Imperial (Unavailable)",{"$f":"T9*2.204","v":36.917000000000002},{"$f":"U9*2.204","v":738.34},1725,"Psig","°F","ACFH","lb/ft³","lb/hr","inches"]
[null,null,null,null,null,null,null,null,null,null,null,null,null,null,null,null,null,null,"CMF350 Metric (Unavailable)",42.5,850,10200,"kPa","°C","E³m³/hr","kg/m³","kg/hr","mm"]
[null,"Ship to address when meters complete\n(      check if same as billing address)",null,null,null,null,"City",null,"Province",null,"Postal code",null,null,null,null,null,null,null,"CMF350 Imperial (Unavailable)",{"$f":"T11*2.204","v":93.67},{"$f":"U11*2.204","v":1873.4},1479,"Psig","°F","ACFH","lb/ft³","lb/hr","inches"]
[null,null,null,null,null,null,null,null,null,null,null,null,null,null,null,null,null,null,"CMF400 Metric (Unavailable)",85,1700,10300,"kPa","°C","E³m³/hr","kg/m³","kg/hr","mm"]
[null,"Witness test information",null,null,null,null,null,null,null,null,null,null,null,null,null,null,null,null,"CMF400 Imperial (Unavailable)",{"$f":"T13*2.204","v":187.34},{"$f":"U13*2.204","v":3746.8},1494,"Psig","°F","ACFH","lb/ft³","lb/hr","inches"]
[null,"Witness test (additional cost)"]
[]
[null,"Complete name and contact information of witness(es). Add additional names under additional information section."]
[null,"Contact name",null,null,null,null,"Email address",null,null,null,"Cell phone number"]
[]
[null,"Meter Information",null,null,null,null,null,null,"Historical or Expected Operating Conditions"]
[null,"Manufacturer",null,null,null,null,null,"\u0080"]
[null,"Sensor Series",null,null,"Please choose",null,null,null,"Meter Orientation",null,"Horizontal, tubes up"]
[null,"Nominal Pipe Size",null,null,null,null,null,"\u0080","Maximum Pressure",null,{"$f":"IFERROR(INDEX(V3:V14,MATCH(E22,S3:S14,0)),\"\")","v":""},{"$f":"IFERROR(INDEX(W3:W14,MATCH(E22,S3:S15,0)),\"\")","v":""}]
[null,"Flange to flange measurement",null,null,null,{"$f":"IFERROR(INDEX(AB3:AB14,MATCH(E22,S3:S14,0)),\"\")","v":""},null,null,"Average Pressure",null,null,{"$f":"IFERROR(INDEX(W3:W14,MATCH(E22,S3:S15,0)),\"\")","v":""},null,null,"Metric","Imperial","Sensor series","Qmin lb/min or kg/min","Qmax lb/min or kg/min","Pmax psig or kPa","Pmax Barg","Pipe size","Meter output","Meter orientation","Manufacturer","Transmitter model"]
[null,"ANSI Rating",null,null,"300#",null,null,"\u0080","Average Temperature",null,null,{"$f":"IFERROR(INDEX(X3:X14,MATCH(E22,S3:S14,0)),\"\")","v":""},null,null,"kPa","Psig","CMF050 Metric",3,60,10815,null,"½”","Analog","Horizontal, tubes up","Micro Motion","2700 MVD"]
[null,"Sensor Model #",null,null,null,null,null,null,"Maximum Mass Flow ",null,null,{"$f":"IFERROR(INDEX(AA3:AA14,MATCH(E22,S3:S14,0)),\"\")","v":""},null,null,"°C","°F","CMF050 Imperial",7,132,1545,null,"¾”","Frequency","Vertical, tubes flag position",null,3500]
[null,"Sensor Serial #",null,null,null,null,null,null,"Average Mass Flow",null,null,{"$f":"IFERROR(INDEX(AA3:AA14,MATCH(E22,S3:S14,0)),\"\")","v":""},null,null,"E³m³/hr","ACFH","CMF100 Metric",5.5,110,10500,null,"1”","Modbus",null,null,3700]
[null,"Sensor Badge#",null,null,null,null,null,null,"Gas Density @ Pb & Tb",null,null,{"$f":"IFERROR(INDEX(Z3:Z14,MATCH(E22,S3:S14,0)),\"\")","v":""},null,null,"kg/m³","lb/ft³","CMF100 Imperial",12,243,1500,null,"1 ½”",null,null,null,"5700 MVD"]
[null,"Transmitter Model #",null,null,null,null,null,"\u0080","(0.713 may be used for sweet gas)",null,null,null,null,null,"kg/min","lb/hr","CMF200 Metric",8.75,175,11445,null,"1 ¾”",null,null,null,"RFT 9739"]
[null,"Transmitter Serial #",null,null,null,null,null,null,null,null,null,null,null,null,null,null,"CMF200 Imperial",19,386,1635,null,"2”"]
[null,"Transmitter Badge #",null,null,null,null,null,null,null,null,null,null,null,null,null,null,"CMF300 Metric",16.75,335,12495,null,"3”"]
[null,"Bi-directional calibration",null,null,null,null,null,null,null,null,null,null,null,null,null,null,"CMF300 Imperial",37,739,1785,null,"4”"]
[null,"AGA Report No.11, Measurement of Natural Gas by Coriolis Meter indicates that “the flow calibration need only be done in one flow direction. The meter factor applies in both directions.” FortisBC flow calibrations will be for one direction only, unless bi-directional is specifically requested below.",null,null,null,null,null,null,null,null,null,null,null,null,null,null,"CMF350 Metric",42.5,850,10710]
[null,null,null,null,null,null,null,null,null,null,null,null,null,null,null,null,"CMF350 Imperial",94,1874,1530]
[null,"Shipping requirements",null,null,null,null,null,null,null,null,null,null,null,null,null,null,"CMF400 Metric",85,1700,10815]
[null,"Meters must be shipped with electronics (sensing tubes and transmitter).",null,null,null,null,null,null,null,null,null,null,null,null,null,null,"CMF400 Imperial",187,3748,1545]
[null,"Preferred shipping company (name/phone number)",null,null,null,null,null,"Carrier account number (If applicable)"]
[]
[null,"Turnaround",null,null,null,null,null,"Required date (Yr/Mth/Day)"]
[]
[null,"To submit your request, or if you have any questions, please contact FortisBC Measurement. "]
[null,"All quotations will be returned by e-mail "]
[null,"Toll Free: 1-800-667-4338",null,null,"Web: fortisbc.com/measurement",null,null,null,"E-mail: measurement@fortisbc.com"]
[null,"Additional information (please use separate sheet if needed) - Use Alt+Enter to create separate line items."]
[]
[null,"Calibration requirements"]
[null,"The meter at each of the following test points (10%, 25%, 50%, 75% and 100% of the customer specified Qmax) at the average in service pressure anticipated for the meter's intended service.  Additional test points, or verification points if the meter is adjusted, may be added if needed."]
[null,"Data input"]
[null,"Customer Specified Qmax",null,null,null,null,{"$f":"IFERROR(INDEX(AA3:AA14,MATCH(E22,S3:S14,0)),\"\")","v":""}]
[null,"Maximum frequency output",null,null,null,null,"Hz"]
[null,"Meter output",null,null,null,null,null,"\u0080"]
[null,"Calibration Test Instructions"]
[null,"Calibration"]
[]
[null,"Calibration pressure",null,null,null,null,{"$f":"IFERROR(INDEX(W3:W14,MATCH(E22,S3:S15,0)),\"\")","v":""}]
[null,"Test Points:"]
[null,"1 (10% of Qmax)",null,null,{"$f":"IFERROR((0.1*E49),\"\")","v":0},null,{"$f":"IFERROR(INDEX(AA3:AA14,MATCH(E22,S3:S14,0)),\"\")","v":""}]
[null,"2 (25% of Qmax)",null,null,{"$f":"IFERROR((0.25*E49),\"\")","v":0},null,{"$f":"IFERROR(INDEX(AA3:AA14,MATCH(E22,S3:S14,0)),\"\")","v":""}]
[null,"3 (50% of Qmax)",null,null,{"$f":"IFERROR((0.5*E49),\"\")","v":0},null,{"$f":"IFERROR(INDEX(AA3:AA14,MATCH(E22,S3:S14,0)),\"\")","v":""}]
[null,"4 (75% of Qmax)",null,null,{"$f":"IFERROR((0.75*E49),\"\")","v":0},null,{"$f":"IFERROR(INDEX(AA3:AA14,MATCH(E22,S3:S14,0)),\"\")","v":""}]
[null,"5 (100% of Qmax)",null,null,{"$f":"IFERROR((1*E49),\"\")","v":0},null,{"$f":"IFERROR(INDEX(AA3:AA14,MATCH(E22,S3:S14,0)),\"\")","v":""}]
[null,"Additional test point"]
[null,"6 (1st Additional point)",null,null,null,null,{"$f":"IFERROR(INDEX(AA3:AA14,MATCH(E22,S3:S14,0)),\"\")","v":""}]
[null,"7 (2nd Additional point)",null,null,null,null,{"$f":"IFERROR(INDEX(AA3:AA14,MATCH(E22,S3:S14,0)),\"\")","v":""}]
[null,"8 (3rd Additional point)",null,null,null,null,{"$f":"IFERROR(INDEX(AA3:AA14,MATCH(E22,S3:S14,0)),\"\")","v":""}]
[null,"9 (4th Additional point)",null,null,null,null,{"$f":"IFERROR(INDEX(AA3:AA14,MATCH(E22,S3:S14,0)),\"\")","v":""}]
[null,"Verification points:"]
[null,"1 (1st Verfication point)",null,null,null,null,{"$f":"IFERROR(INDEX(AA3:AA14,MATCH(E22,S3:S14,0)),\"\")","v":""}]
[null,"2 (2nd Verification point)",null,null,null,null,{"$f":"IFERROR(INDEX(AA3:AA14,MATCH(E22,S3:S14,0)),\"\")","v":""}]
[null,"Meter details"]
[null,null,null,null,null,null,null,null,null,null,null,null,null,"150#","cm"]
[null,"Provide measured fluids/gases. (ie natural gas, CO2, etc.):",null,null,null,null,null,null,null,null,null,null,null,"300#","inches"]
[null,"Seal meter (for custody transfer)",null,null,null,null,null,null,null,null,null,null,null,"600#"]
[null,"New meters receive a 6 year seal and re-verified meters receive a 4 year seal. Meters must be a Measurement Canada approved device. Calibration will include graph of as found performance."]
[]
[]
[null,"Where do original electronic certificates get emailed to"]
[]
[null,null,null,null,null,null,null,null,null,null,"Document Number: QA-229\nIssue Date: July 2021\nRevision:4"]
[null,"2765e 21/07"]